Cogmind - Beta 17 @@@ ROGUE MODE // 2026.07.24 @ 02:21:04 Player: ae Result: Defending 0bPrime! Performance ------------- Evolutions (8) 4000 Regions Visited (19) 3800 Robots Destroyed (137) 685 Value Destroyed (5055) 5055 Prototype IDs (119) 2380 Alien Tech Used (5) 1000 Bonus (33517) 33517 TOTAL SCORE: 50437 Bonus ------- High Alert Combat Kills 2999 Follower Combat Kills 893 Registered with UFD 300 Met Optimus in HQ 500 Destroyed Superfortress 15000 Met Optimus at Protoforge 1000 Executed Drillbomb Mission 10000 Win 3000 Friendly Fire -175 Cogmind --------- Core Integrity 635/1450 Matter 300/300 Energy 310/310 System Corruption 0% Temperature Cool (0) Movement Flying (10) Location 0bPrime Parts ------- > --- POWER (2) -------- Light Quantum Reactor Concept Zero-point Core > --- PROPULSION (7) --- Experimental Q-thruster Experimental Biomechanical Wings Experimental Surge Thruster Experimental Surge Thruster Experimental Surge Thruster Experimental Surge Thruster Concept Fieldthrust Drive > --- UTILITY (12) ----- Experimental Heat Sink Plexus Tether Experimental Optical Array Experimental Active Sensor Suite Experimental Salvage Targeting Computer Experimental Targeting Computer Advanced Target Analyzer Experimental Core Analyzer Improved Armor Integrity Analyzer Experimental Reaction Control System Centrium Light Armor Plating > --- WEAPON (2) ------- Concept XC Strikerail > --- INVENTORY (5) ---- Experimental Kinecellerator Faulty Mini Quantum Capacitor Centrium Medium Armor Plating Concept Plasma Driver Experimental Terror Saw Peak State ------------ > --- POWER ------------ Concept Zero-point Core > --- PROPULSION ------- Experimental Q-thruster Experimental Surge Thruster Experimental Surge Thruster Experimental Surge Thruster Experimental Surge Thruster Experimental Surge Thruster Concept Fieldthrust Drive > --- UTILITY ---------- Experimental Heat Sink Plexus Tether Experimental Optical Array Experimental Active Sensor Suite Experimental Salvage Targeting Computer Experimental Targeting Computer Advanced Target Analyzer Experimental Core Analyzer Improved Armor Integrity Analyzer Experimental Reaction Control System Centrium Medium Armor Plating > --- WEAPON ----------- Concept XC Strikerail Concept XC Strikerail > --- INVENTORY -------- Light Quantum Reactor Experimental Biomechanical Wings Experimental Heat Sink Concept Plasma Driver Experimental Terror Saw [Rating: 218] Favorites ----------- Power Concept Zero-point Core Engine Light Ion Engine Power Core Concept Zero-point Core Reactor Light Quantum Reactor Propulsion Experimental Surge Thruster Treads Light Treads Wheel Wheel Hover Unit Improved Linear Gravjet Flight Unit Experimental Surge Thruster Utility Experimental Heat Sink Device Experimental Heat Sink Storage Medium Storage Unit Processor Plexus Tether Hackware Improved Hacking Suite Protection Centrium Light Armor Plating Weapon Concept XC Strikerail Energy Gun Small Laser Energy Cannon Advanced Plasma Cannon Ballistic Gun Concept XC Strikerail Launcher Mini Grenade Launcher Impact Weapon Heavy Hammer Slashing Weapon Experimental Terror Saw Piercing Weapon Force Lance Special Melee Weapon Datajack Build | -11 -10 -10 -9 -9 -9 -9 -6 -6 -6 -5 -4 -4 -4 -4 -3 -3 -2 -2 -2 ------- Run | Yrd Mat Min Mat Sto Rec Scr Fac Was Fac Fac Fac Upp Upp Zhi Pro Res Res Qua Frg Slots Evolved 16 | . . . 2 . . . 6 . . 2 2 . . . . 2 2 . . Power 1 | . . . . . . . . . . . 1 . . . . . . . . Propulsion 5 | . . . 1 . . . 1 . . 1 1 . . . . 1 . . . Utility 10 | . . . 1 . . . 5 . . 1 . . . . . 1 2 . . Weapon . | . . . . . . . . . . . . . . . . . . . . Parts Attached 170 | 5 . . 9 1 1 5 22 . 5 12 24 2 2 6 . 7 10 4 55 Power 13 | . . . 1 . . 1 1 . . 1 4 . 1 1 . . . 1 2 Engine 6 | . . . 1 . . 1 1 . . . 2 . . . . . . 1 . Core 3 | . . . . . . . . . . 1 1 . . . . . . . 1 Reactor 4 | . . . . . . . . . . . 1 . 1 1 . . . . 1 Propulsion 51 | 2 . . 3 1 . 1 4 . 1 4 12 . 1 3 . 3 4 . 12 Treads 2 | 2 . . . . . . . . . . . . . . . . . . . Leg . | . . . . . . . . . . . . . . . . . . . . Wheel 1 | . . . . . . . . . . . 1 . . . . . . . . Hover 16 | . . . . . . . . . . . 9 . 1 3 . . 3 . . Flight 32 | . . . 3 1 . 1 4 . 1 4 2 . . . . 3 1 . 12 Utility 80 | 1 . . 4 . 1 2 11 . 2 6 5 2 . 2 . 3 5 2 34 Device 36 | 1 . . 3 . . 1 4 . . 3 . 1 . . . 1 3 2 17 Storage 2 | . . . . . . 1 . . . . . . . 1 . . . . . Processor 22 | . . . 1 . . . 3 . . . 3 . . . . 1 1 . 13 Hackware 12 | . . . . . . . 4 . 2 1 2 1 . . . 1 1 . . Protection 8 | . . . . . 1 . . . . 2 . . . 1 . . . . 4 Artifact . | . . . . . . . . . . . . . . . . . . . . Weapon 26 | 2 . . 1 . . 1 6 . 2 1 3 . . . . 1 1 1 7 Energy Gun 1 | 1 . . . . . . . . . . . . . . . . . . . Energy Cannon 4 | . . . . . . . . . 1 1 . . . . . . 1 . 1 Ballistic Gun 5 | 1 . . . . . . . . . . . . . . . . . . 4 Ballistic Cannon . | . . . . . . . . . . . . . . . . . . . . Launcher 2 | . . . . . . . 1 . 1 . . . . . . . . . . Special Weapon . | . . . . . . . . . . . . . . . . . . . . Impact Weapon 4 | . . . 1 . . 1 1 . . . 1 . . . . . . . . Slashing Weapon 6 | . . . . . . . 3 . . . . . . . . 1 . 1 1 Piercing Weapon 3 | . . . . . . . . . . . 2 . . . . . . . 1 Special Melee Weapon 1 | . . . . . . . 1 . . . . . . . . . . . . Unidentified Prototypes 25 | . . . . 1 . . . . . . 2 . . 4 . 2 1 2 13 Parts Lost 35 | . . . . 2 1 . 2 . 2 14 1 . . . . 3 1 . 9 Power 3 | . . . . . . . . . . 2 . . . . . . . . 1 Propulsion 18 | . . . . 1 1 . 2 . 1 8 1 . . . . 2 . . 2 Utility 9 | . . . . 1 . . . . . 3 . . . . . . 1 . 4 Weapon 5 | . . . . . . . . . 1 1 . . . . . 1 . . 2 Highest Loss Streak 7 | . . . . 1 1 . 1 . 1 7 1 . . . . 2 1 . 5 To Critical Strikes . | . . . . . . . . . . . . . . . . . . . . Average Backups 5 | 1 3 3 4 4 5 7 9 10 9 8 4 5 5 5 5 4 4 4 4 Power . | . 1 1 1 1 1 . . 1 1 . . . . . . . . . . Propulsion . | . . . . . . . . . 1 . 1 2 2 2 2 1 . . . Utility 2 | . 1 1 1 1 2 3 4 4 3 4 2 1 1 1 1 1 1 2 2 Weapon 2 | . 1 1 1 2 2 2 4 4 3 2 1 1 . . . . . . 2 Tool/Special . | . . . . . . . . . . . . . . . . . . . . Unused Backups 23 | . . . . 2 . 4 5 . 2 3 1 . . . . 1 2 1 2 Power 2 | . . . . 1 . . . . 1 . . . . . . . . . . Propulsion 4 | . . . . . . . 1 . . 1 . . . . . . 1 . 1 Utility 13 | . . . . 1 . 2 4 . . 2 1 . . . . 1 1 . 1 Weapon 3 | . . . . . . 2 . . 1 . . . . . . . . . . Tool/Special 1 | . . . . . . . . . . . . . . . . . . 1 . Average Slot Usage (%) 90 | . 71 71 75 99 95 89 97 100 98 82 77 93 94 96 100 97 90 92 90 Core 3 | . . . . . . . . . . 1 2 5 5 5 5 4 4 4 4 Reactor 3 | . . . . . . . . . . . . 5 5 5 5 3 . . 3 Flight 29 | . . . 19 33 31 30 25 26 26 23 1 5 5 2 . 4 17 21 29 Device 13 | . 14 14 15 21 11 11 13 13 13 13 8 11 15 11 10 12 16 16 13 Processor 29 | . . . 2 11 11 11 11 13 13 11 14 15 15 15 15 15 17 13 29 Protection 3 | . . . . . 9 4 . . . 1 . . . 3 5 4 3 4 3 Ballistic Gun 3 | . 14 14 11 11 11 11 3 . . . . . . . . . . . 3 Peak Build Rating 218 | 5 5 5 10 12 12 16 60 60 67 72 111 116 118 122 118 136 146 168 218 Average Rating 212 | 3 5 5 7 10 11 13 50 60 61 61 77 110 116 116 118 128 135 161 213 On Entrance 63 | . 5 5 5 10 11 10 16 60 60 62 30 109 116 116 118 118 114 146 166 Avg Prop Armor Cover (%) 4 | 31 28 28 28 . . . 2 . 2 16 2 4 4 3 . 2 7 3 2 Naked Turns . | . . . . . . . . . . . . . . . . . . . . Heaviest Build 51 | 3 3 3 10 9 11 17 25 25 25 30 36 38 38 43 43 43 30 35 51 Greatest Support 64 | 3 3 3 12 13 13 13 28 25 28 33 55 40 40 64 64 64 36 42 54 Greatest Overweight (x) 3 | . . . . . . 1 1 . 1 3 2 . . 1 . . . 1 1 Average Overweight (x) . | . . . . . . . . . . . . . . . . . . . . Largest Inventory Capacity 10 | 5 5 5 5 5 5 10 10 10 10 10 5 5 5 5 5 5 5 5 5 Average Capacity 5 | 5 5 5 5 5 5 8 10 10 10 9 5 5 5 5 5 5 5 5 5 Most Carried 10 | 3 3 3 5 5 5 10 10 10 10 10 5 5 5 5 5 5 5 5 5 Average Carried 5 | 1 3 3 4 4 5 7 9 10 9 8 4 4 4 4 5 4 4 4 4 Final Capacity 10 | 5 5 5 5 5 5 10 10 10 10 5 5 5 5 5 5 5 5 5 5 Final Carried 10 | 3 3 3 5 5 5 10 10 10 10 5 5 5 5 5 5 5 5 5 5 Class Distribution -------------------- 98% | Scavenger-Scout Dominant Class ---------------- Mutant | -10/Materials Mutant | -10/Mines Scavenger-Mutant | -9/Materials Scavenger-Mutant | -9/Storage Mutant | -9/Recycling Mutant | -9/Scraptown Hacker-Scout | -6/Factory Hacker-Scout | -6/Waste Hacker-Scout | -6/Factory Hacker-Scout | -5/Factory Hacker-Scout | -4/Factory Hacker-Scout | -4/Upper Caves Hacker-Scout | -4/Upper Caves Hacker-Scout | -4/Zhirov Hacker-Scout | -3/Proximity Caves Hacker-Scout | -3/Research Hacker-Scout | -2/Research Hacker-Scout | -2/Quarantine Scavenger-Scout | -2/Protoforge Resources | -11 -10 -10 -9 -9 -9 -9 -6 -6 -6 -5 -4 -4 -4 -4 -3 -3 -2 -2 -2 ----------- Run | Yrd Mat Min Mat Sto Rec Scr Fac Was Fac Fac Fac Upp Upp Zhi Pro Res Res Qua Frg Matter Collected 6149 | 264 1 2 86 30 10 30 111 189 162 88 558 60 30 90 . 30 237 48 4123 Remotely . | . . . . . . . . . . . . . . . . . . . . Salvage Created 6582 | 193 18 24 39 78 . . 131 . 437 170 356 117 . 285 40 207 252 48 4187 Parts 294 | 17 3 3 5 . . . 25 . 18 13 21 6 . 5 1 9 10 6 152 Haulers Intercepted 9 | . . . . 2 . . . . 3 . 1 . . . . 1 2 . . Recyclers Shooed . | . . . . . . . . . . . . . . . . . . . . Parts Field Recycled . | . . . . . . . . . . . . . . . . . . . . Retrieved Matter . | . . . . . . . . . . . . . . . . . . . . Parts Self-Destructed 9 | . . . . . . . . . . . . 6 . 2 1 . . . . Prevented 1 | . . . . . . . . . . . . . . . 1 . . . . Parts Restored . | . . . . . . . . . . . . . . . . . . . . Kills | -11 -10 -10 -9 -9 -9 -9 -6 -6 -6 -5 -4 -4 -4 -4 -3 -3 -2 -2 -2 ------- Run | Yrd Mat Min Mat Sto Rec Scr Fac Was Fac Fac Fac Upp Upp Zhi Pro Res Res Qua Frg Combat Hostiles Destroyed 88 | . . . 3 . . . 4 . 4 6 1 . . . . . . . 70 Melee 4 | . . . . . . . . . . 2 1 . . . . . . . 1 Guns 70 | . . . 3 . . . . . . . . . . . . . . . 67 Cannons 2 | . . . . . . . . . . . . . . . . . . . 2 AOE 12 | . . . . . . . 4 . 4 4 . . . . . . . . . Classes Destroyed 22 | 2 1 . 1 1 . . 1 . 1 3 1 1 . . 1 . . . 9 Worker 10 | . . . . . . . 1 . 1 . 5 . . . . . . 3 . Builder 9 | . 1 1 . . . . 3 . 1 . . . . . . 1 1 . 1 Tunneler 7 | 5 . . . . . . 2 . . . . . . . . . . . . Hauler 10 | . . . . 2 . . . . 3 . 1 . . . . 1 2 . 1 Recycler 2 | 1 . . . . . . . . . . . . . . . 1 . . . Minesweeper 1 | . . . . . . . . . . . . . . . 1 . . . . Mechanic 6 | . . . . . . . . . . . 1 . . . . . . . 5 Operator 2 | . . . . . . . . . . 1 . . . . . . 1 . . Drone 24 | . . . . . . . . . . . . . . . . . . . 24 Watcher 7 | . . . . . . . . . 1 2 2 . . . . . 1 . 1 Swarmer 18 | . . . 3 . . . 4 . 4 4 . . . . . . . . 3 Saboteur 1 | . . . . . . . . . . 1 . . . . . . . . . Grunt 13 | . . . . . . . . . . . . . . . . . . . 13 Brawler 2 | . . . . . . . . . . . . . . . . . . . 2 Protector 8 | . . . . . . . . . . . . . . . . . . . 8 Sentry 2 | . . . . . . . . . . . . . . . . . . . 2 Hunter 3 | . . . . . . . . . . . . . . . . . . . 3 Programmer 5 | . . . . . . . . . . 1 1 . . . . . . . 3 Immortal 2 | . . . . . . . . . . . . . . . . . . . 2 Striker 9 | . . . . . . . . . . . . . . . . . . . 9 Scrapoid 1 | . . . . . . . . . . . . . . . . . . . 1 Samaritan 1 | . . . . . . . . . . . . 1 . . . . . . . Best Kill Streak 9 | 6 1 1 3 2 . . 5 . 4 4 3 . . . 1 1 1 3 9 Combat Bots Only 9 | . . . 3 . . . 4 . 4 4 1 . . . . . . . 9 Max Kills in Single Turn 3 | 1 1 1 1 1 . . 2 . 3 3 1 1 . . 1 1 1 1 2 Gunslinging 1 | . . . . . . . . . . . . . . . . . . . 1 Exploded 3 | . . . . . . . 1 . 3 3 . . . . . . . . . Melee 1 | . . . . . . . . . . 1 1 . . . . . . . 1 Uniques/NPCs Destroyed . | . . . . . . . . . . . . . . . . . . . . Combat | -11 -10 -10 -9 -9 -9 -9 -6 -6 -6 -5 -4 -4 -4 -4 -3 -3 -2 -2 -2 -------- Run | Yrd Mat Min Mat Sto Rec Scr Fac Was Fac Fac Fac Upp Upp Zhi Pro Res Res Qua Frg Hostile Shots Fired 450 | . . . 9 41 4 . 42 . 45 83 38 . . . . 30 33 2 123 Missed 221 | . . . 2 21 1 . 17 . 32 35 19 . . . . 13 25 1 55 Hits 229 | . . . 7 20 3 . 25 . 13 48 19 . . . . 17 8 1 68 Melee 12 | . . . . . . . . . . 9 . . . . . 3 . . . Projectile 217 | . . . 7 20 3 . 25 . 13 39 19 . . . . 14 8 1 68 AOE 1 | . . . . . . . . . . . . . . . . . . . 1 Critical Strikes 12 | . . . . . . . 1 . . 4 3 . . . . 1 . . 3 Damage Taken 5857 | . . . 71 187 46 . 291 . 238 1195 324 . . . . 349 174 . 2982 Core 1485 | . . . 15 28 . . 104 . 32 478 9 . . . . 109 56 . 654 Absorbed by Shields . | . . . . . . . . . . . . . . . . . . . . Redirected to Shielding 16 | . . . . . . . . . . 16 . . . . . . . . . Regen/Repaired (Parts) 432 | . . . . . . . . 30 18 39 48 . . . . . 194 . 103 Core Remaining (%) 82 | 100 . 100 . . . 89 . . 84 52 . . . . 99 91 . . 43 Volleys Fired 623 | 14 1 2 6 . . . 4 . 14 30 1 2 1 . . 13 23 5 507 Largest 2 | 2 2 2 2 . . . 1 . 1 1 1 1 1 . . 1 1 1 2 Hottest 172 | 60 60 60 60 . . . 30 . 85 98 98 98 98 . . 98 120 120 172 Shots Fired 805 | 28 2 4 12 . . . 4 . 14 30 1 2 1 . . 13 23 5 666 Gun 521 | 28 2 4 12 . . . . . . . . . . . . . . . 475 Cannon 270 | . . . . . . . . . 8 26 1 2 1 . . 13 23 5 191 Launcher 14 | . . . . . . . 4 . 6 4 . . . . . . . . . Special . | . . . . . . . . . . . . . . . . . . . . Kinetic 498 | 14 1 2 6 . . . . . . . . . . . . . . . 475 Thermal 293 | 14 1 2 6 . . . . . 8 26 1 2 1 . . 13 23 5 191 Explosive 14 | . . . . . . . 4 . 6 4 . . . . . . . . . Electromagnetic . | . . . . . . . . . . . . . . . . . . . . Robot Hit Streak 58 | 10 2 5 7 . . . 9 . . 2 . 3 . . . . . . 58 Robot Miss Streak 6 | 3 . . 1 . . . 1 . . 1 . . . . . . . . 6 Penetration Max 1 | . . . . . . . . . . . . . . . . . . . 1 Secondary Targets 4 | . . . . . . . . . . . . . . . . . . . 4 Max Gunslinging Chain 1 | . . . . . . . . . . . . . . . . . . . 1 Shots Hit Robots 393 | 16 1 3 9 10 1 . 8 . 18 11 14 5 . 7 1 5 9 4 271 Core Hits 222 | 9 1 2 3 . . . 9 . 20 12 10 . . 3 1 1 4 2 145 Critical Kills 25 | . . . . . . . . . . . . . . . . . . . 25 Critical Parts Destroyed 25 | . . . . 2 . . . . . . . . . . . . . . 23 Critical Strikes 64 | . . . . 2 . . . . 2 . 2 1 . . 1 3 1 . 52 Destroy 52 | . . . . . . . . . . . . . . . . . . . 52 Smash 2 | . . . . 2 . . . . . . . . . . . . . . . Sever 4 | . . . . . . . . . 2 . . . . . . 1 1 . . Impale 6 | . . . . . . . . . . . 2 1 . . 1 2 . . . Melee Attacks 340 | . . . 3 38 1 . 52 . 47 37 36 18 5 7 2 20 47 11 16 Impact 42 | . . . 3 38 1 . . . . . . . . . . . . . . Slashing 235 | . . . . . . . 51 . 46 37 16 . . . . 11 47 11 16 Piercing 61 | . . . . . . . . . . . 20 18 5 7 2 9 . . . Sneak Attacks 38 | . . . . 3 1 . 6 . 5 1 7 1 . . 1 4 4 3 2 Combat Hostiles . | . . . . . . . . . . . . . . . . . . . . Follow-up Attacks . | . . . . . . . . . . . . . . . . . . . . Damage Inflicted 17774 | 146 18 31 90 545 54 . 812 . 1193 967 1002 323 . 574 118 553 827 706 9815 Guns 9530 | 146 18 31 90 . . . . . . . . . . . . . . . 9245 Cannons 428 | . . . . . . . . . . 59 . 34 . . . . . . 335 Explosions 1332 | . . . . . . . 438 . 385 509 . . . . . . . . . Melee 6484 | . . . . 545 54 . 374 . 808 399 1002 289 . 574 118 553 827 706 235 Ramming . | . . . . . . . . . . . . . . . . . . . . Kinetic 9353 | 60 7 9 32 . . . . . . . . . . . . . . . 9245 Thermal 605 | 86 11 22 58 . . . . . . 59 . 34 . . . . . . 335 Explosive 1332 | . . . . . . . 438 . 385 509 . . . . . . . . . Electromagnetic . | . . . . . . . . . . . . . . . . . . . . Impact 599 | . . . . 545 54 . . . . . . . . . . . . . . Slashing 4026 | . . . . . . . 374 . 808 399 503 . . . . 174 827 706 235 Piercing 1859 | . . . . . . . . . . . 499 289 . 574 118 379 . . . Highest Corruption 21 | . . . . . . . . . . 4 . . . . . 1 . . 21 Average Corruption 5 | . . . . . . . . . . 2 . . . . . 1 . . 12 Corruption Purged 21 | . . . . . . . . . . . . . . . . . . . 21 Corruption Blocked . | . . . . . . . . . . . . . . . . . . . . Effects 12 | . . . . . . . . . . 4 . . . . . 2 . . 6 Message Errors 4 | . . . . . . . . . . . . . . . . 1 . . 3 Matter Fused 4 | . . . . . . . . . . 2 . . . . . . . . 2 Heat Flow Errors 3 | . . . . . . . . . . 1 . . . . . 1 . . 1 Energy Discharges 1 | . . . . . . . . . . 1 . . . . . . . . . Overload Shots . | . . . . . . . . . . . . . . . . . . . . Overflow Damage 1817 | . . . . 80 34 . 148 . 35 78 122 181 . 211 . 398 191 144 195 Projectiles 50 | . . . . . . . . . . 10 . . . . . . . . 40 Explosions 4 | . . . . . . . . . 3 1 . . . . . . . . . Melee 1763 | . . . . 80 34 . 148 . 32 67 122 181 . 211 . 398 191 144 155 Knockbacks . | . . . . . . . . . . . . . . . . . . . . Impact . | . . . . . . . . . . . . . . . . . . . . Kinetic . | . . . . . . . . . . . . . . . . . . . . Secondary . | . . . . . . . . . . . . . . . . . . . . Self-Inflicted Damage . | . . . . . . . . . . . . . . . . . . . . Shots . | . . . . . . . . . . . . . . . . . . . . Rammed . | . . . . . . . . . . . . . . . . . . . . Targets Rammed . | . . . . . . . . . . . . . . . . . . . . Kicked . | . . . . . . . . . . . . . . . . . . . . Crushed . | . . . . . . . . . . . . . . . . . . . . Highest Temperature 277 | 20 10 20 8 . . . 11 . 102 185 224 98 . . . 61 112 . 277 Average Temperature 44 | 9 7 12 3 . . . 9 . 36 57 58 33 . . . 41 30 . 126 Received Heat Transfer 456 | . . . 6 45 18 . 21 . 30 42 69 . . . . 9 9 . 207 Siege Activations . | . . . . . . . . . . . . . . . . . . . . Martial Activations . | . . . . . . . . . . . . . . . . . . . . Shielding Activations . | . . . . . . . . . . . . . . . . . . . . Robots Disrupted . | . . . . . . . . . . . . . . . . . . . . Combat Hostiles . | . . . . . . . . . . . . . . . . . . . . Robots Corrupted 2 | . . . . 2 . . . . . . . . . . . . . . . Combat Hostiles . | . . . . . . . . . . . . . . . . . . . . Parts Fried 4 | . . . . 4 . . . . . . . . . . . . . . . Impact Corruptions 6 | . . . . 5 1 . . . . . . . . . . . . . . Robots Melted . | . . . . . . . . . . . . . . . . . . . . Combat Hostiles . | . . . . . . . . . . . . . . . . . . . . Parts Melted 1 | . . . . . . . . . . . . . . . . . . . 1 Heat Transferred 724 | 200 25 50 125 . . . . . . 74 . 50 . . . . . . 200 Parts Sabotaged . | . . . . . . . . . . . . . . . . . . . . Parts Stolen . | . . . . . . . . . . . . . . . . . . . . Parts Stripped . | . . . . . . . . . . . . . . . . . . . . Power Chain Reactions . | . . . . . . . . . . . . . . . . . . . . Alert | -11 -10 -10 -9 -9 -9 -9 -6 -6 -6 -5 -4 -4 -4 -4 -3 -3 -2 -2 -2 ------- Run | Yrd Mat Min Mat Sto Rec Scr Fac Was Fac Fac Fac Upp Upp Zhi Pro Res Res Qua Frg Maximum Alert Level 5 | . . . . 1 1 . 1 . 2 2 . . . . . . 1 . 5 Low Security (%) . | 100 100 100 100 69 80 . 99 100 40 13 100 . . . . 100 92 100 . Level 1 . | . . . . 30 19 . . . 37 54 . . . . . . 7 . . Level 2 . | . . . . . . . . . 22 31 . . . . . . . . . Level 3 . | . . . . . . . . . . . . . . . . . . . . Level 4 4 | . . . . . . . . . . . . . . . . . . . 4 Level 5 94 | . . . . . . . . . . . . . . . . . . . 95 High Security . | . . . . . . . . . . . . . . . . . . . . Max Security . | . . . . . . . . . . . . . . . . . . . . Peak Influence 2919 | 15 5 5 169 283 216 . 205 43 491 568 198 . . . . 37 264 175 2919 Initial 222 | . 3 . . 61 91 . . 41 . 222 193 . . . . . 6 148 60 Average 2808 | 5 . . 110 136 171 . 107 19 259 305 122 . . . . 5 127 152 2830 Influence Increases 8695 | 30 5 5 206 755 155 . 600 27 1176 757 365 35 . 10 5 111 574 150 3729 Destroy 0b10 Robot/C 1980 | . . . 120 380 . . 80 . 500 120 20 . . . . . . . 760 Destroy 0b10 Robot/NC 455 | 30 5 5 . 10 . . 30 . 45 15 45 5 . 10 5 15 25 15 195 Destroy Leader 362 | . . . 30 84 . . 10 . 108 24 16 . . . . 2 6 . 82 Allied During Kill 367 | . . . 24 128 . . . . 215 . . . . . . . . . . Successful Hack 281 | . . . . 18 5 . 57 . 20 52 28 . . . . . 54 39 8 Select Force Hacks 150 | . . . . . 150 . . . . . . . . . . . . . . Disable Machine 210 | . . . 15 15 . . 30 . 15 15 . . . . . . 30 30 60 Anti-Garrison Action 150 | . . . . . . . . . . . . . . . . . . . 150 Destroy Structure 1785 | . . . 2 15 . . 63 27 78 126 46 . . . . 34 144 21 1229 Partial Spotted 525 | . . . 15 60 . . 30 . . 90 30 . . . . . 150 30 120 Lose Combat Pursuer 2430 | . . . . 45 . . 300 . 195 315 180 30 . . . 60 165 15 1125 Influence Decreases 5776 | 25 10 5 60 665 245 146 482 145 721 815 672 125 . 10 5 99 322 306 918 Entered New Map 1096 | . 2 . . 85 145 146 . 77 . 233 204 34 . . . . 6 116 48 Time Decay 3122 | 25 8 5 60 150 90 . 329 48 341 342 310 91 . 10 5 72 286 180 770 Search Patrol Dispatched 100 | . . . . . . . . . . 100 . . . . . . . . . Lost Part 345 | . . . . 20 10 . 20 . 20 140 8 . . . . 27 10 . 90 Lost Ally 530 | . . . . 260 . . . 20 210 . . . . . . . 20 10 10 Purge Threat 583 | . . . . 150 . . 133 . 150 . 150 . . . . . . . . Squads Dispatched 77 | . 1 . 1 5 . . 13 . 12 13 7 . . . . 4 9 2 10 Investigation 39 | . . . 1 1 . . 8 . 8 7 6 . . . . . 4 . 4 Extermination 12 | . . . . . . . 3 . 2 1 1 . . . . 1 3 1 . Reinforcement 20 | . 1 . . 1 . . 2 . 2 3 . . . . . 2 2 1 6 Assault 4 | . . . . 2 . . . . . 2 . . . . . . . . . Garrison 2 | . . . . 1 . . . . . . . . . . . 1 . . . Intercept . | . . . . . . . . . . . . . . . . . . . . Searches Triggered 1 | . . . . . . . . . . 1 . . . . . . . . . Construction Impeded . | . . . . . . . . . . . . . . . . . . . . Haulers Reinforced . | . . . . . . . . . . . . . . . . . . . . Active Scanning Responses . | . . . . . . . . . . . . . . . . . . . . Cargo Convoy Interrupts 1 | . . . . . . . . . . 1 . . . . . . . . . Stealth | -11 -10 -10 -9 -9 -9 -9 -6 -6 -6 -5 -4 -4 -4 -4 -3 -3 -2 -2 -2 --------- Run | Yrd Mat Min Mat Sto Rec Scr Fac Was Fac Fac Fac Upp Upp Zhi Pro Res Res Qua Frg Distress Signals 1065 | . . . . 4 . . 2 . 2 3 1 . . . . 1 1 . 1051 Communications Jammed . | . . . . . . . . . . . . . . . . . . . . Distress Signals . | . . . . . . . . . . . . . . . . . . . . Times Spotted 416 | . 2 . 4 31 1 . 27 6 37 42 23 4 . . . 15 26 5 193 Peak Tracking Total 14 | . 3 . 3 10 1 . 7 6 9 13 6 2 . . . 12 13 2 14 Tactical Retreats 78 | . . . . 1 . . 8 1 6 7 5 2 . . . 2 6 1 39 Traps | -11 -10 -10 -9 -9 -9 -9 -6 -6 -6 -5 -4 -4 -4 -4 -3 -3 -2 -2 -2 ------- Run | Yrd Mat Min Mat Sto Rec Scr Fac Was Fac Fac Fac Upp Upp Zhi Pro Res Res Qua Frg Traps Triggered 12 | . . . . . . . 1 . 2 1 2 . . . . 2 . . 4 Indirectly . | . . . . . . . . . . . . . . . . . . . . Trap Hack Attempts . | . . . . . . . . . . . . . . . . . . . . Triggered . | . . . . . . . . . . . . . . . . . . . . Disarmed . | . . . . . . . . . . . . . . . . . . . . Reprogrammed . | . . . . . . . . . . . . . . . . . . . . Reused . | . . . . . . . . . . . . . . . . . . . . Traps Extracted . | . . . . . . . . . . . . . . . . . . . . Installed . | . . . . . . . . . . . . . . . . . . . . Triggered . | . . . . . . . . . . . . . . . . . . . . Machines | -11 -10 -10 -9 -9 -9 -9 -6 -6 -6 -5 -4 -4 -4 -4 -3 -3 -2 -2 -2 ---------- Run | Yrd Mat Min Mat Sto Rec Scr Fac Was Fac Fac Fac Upp Upp Zhi Pro Res Res Qua Frg Machines Disabled 22 | . . . 1 1 . . 2 . 1 1 . 1 . . . . 2 2 11 Max in Single Turn 1 | . . . 1 1 . . 1 . . 1 . 1 . . . . 1 1 1 Garrison Access 8 | . . . . . . . 2 . 1 3 . . . . . . . 1 1 Machines Repaired . | . . . . . . . . . . . . . . . . . . . . Machines Dismantled . | . . . . . . . . . . . . . . . . . . . . Machines Sabotaged . | . . . . . . . . . . . . . . . . . . . . Overloaded Fab Kills . | . . . . . . . . . . . . . . . . . . . . Hacking | -11 -10 -10 -9 -9 -9 -9 -6 -6 -6 -5 -4 -4 -4 -4 -3 -3 -2 -2 -2 --------- Run | Yrd Mat Min Mat Sto Rec Scr Fac Was Fac Fac Fac Upp Upp Zhi Pro Res Res Qua Frg Machines Accessed 110 | . 1 . 1 9 6 3 19 . 17 17 9 . . 4 . . 11 6 7 Terminals 41 | . . . 1 8 1 . 6 . 6 5 3 . . . . . 3 5 3 Fabricators 4 | . . . . . . . . . 1 . 2 . . . . . 1 . . Repair Stations 6 | . 1 . . . . . . . 1 2 1 . . . . . 1 . . Recycling Units 37 | . . . . 1 5 . 8 . 7 7 3 . . . . . 3 . 3 Scanalyzers 7 | . . . . . . . 3 . 1 1 . . . . . . 2 . . Garrison Access 8 | . . . . . . . 2 . 1 2 . . . . . . 1 1 1 Total Hacks 241 | . 2 . 2 19 9 16 45 . 29 35 23 . . 17 . . 21 13 10 Successful 167 | . . . 1 8 6 16 31 . 17 25 16 . . 17 . . 15 10 5 Failed 73 | . 2 . 1 11 3 . 14 . 11 10 7 . . . . . 6 3 5 Catastrophic 10 | . 1 . . 1 1 . 1 . 2 . . . . . . . 2 . 2 Database Lockouts 1 | . . . . . . . . . 1 . . . . . . . . . . Manual 112 | . . . 1 8 9 . 21 . 17 19 13 . . . . . 10 6 8 Terminals 105 | . . . 2 17 3 . 24 . 13 16 7 . . . . . 8 11 4 Fabricators 12 | . . . . . . . . . 2 . 8 . . . . . 2 . . Repair Stations 12 | . 2 . . . . . . . 2 4 2 . . . . . 2 . . Recycling Units 46 | . . . . 2 6 . 9 . 8 8 6 . . . . . 3 . 4 Scanalyzers 21 | . . . . . . . 10 . 3 4 . . . . . . 4 . . Garrison Access 12 | . . . . . . . 2 . 1 3 . . . . . . 2 2 2 Terminal Hacks 72 | . . . . 6 . 16 9 . 4 5 5 . . 17 . . 3 6 1 Record 16 | . . . . . . 11 . . . . . . . 5 . . . . . Part Schematic 5 | . . . . . . . 1 . . . . . . 4 . . . . . Robot Analysis 9 | . . . . . . 5 . . . . . . . 4 . . . . . Prototype ID Bank 5 | . . . . . . . 1 . . . . . . 4 . . . . . Open Door 4 | . . . . 4 . . . . . . . . . . . . . . . Level Access Points 4 | . . . . . . . 1 . . 1 1 . . . . . . 1 . Branch Access Points 2 | . . . . . . . . . . 1 . . . . . . 1 . . Terminal Index 1 | . . . . . . . . . 1 . . . . . . . . . . Recycling Unit Index 1 | . . . . . . . . . . . . . . . . . 1 . . Garrison Index 1 | . . . . . . . . . . . . . . . . . . 1 . Unreport Threat 4 | . . . . 1 . . 1 . 1 . 1 . . . . . . . . Locate Traps 2 | . . . . . . . 1 . . . . . . . . . . 1 . Maintenance Status 1 | . . . . . . . . . . 1 . . . . . . . . . Recall Extermination 4 | . . . . . . . 2 . 1 . 1 . . . . . . . . Hauler Manifests 1 | . . . . . . . 1 . . . . . . . . . . . . Registered Components 4 | . . . . . . . . . 1 1 1 . . . . . . 1 . Registered Prototypes 2 | . . . . . . . . . . . 1 . . . . . 1 . . Zone Layout 5 | . . . . 1 . . 1 . . 1 . . . . . . . 2 . Proto ID Catalog 1 | . . . . . . . . . . . . . . . . . . . 1 Fabricator Hacks 7 | . . . . . . . . . 1 . 4 . . . . . 2 . . Network Status 1 | . . . . . . . . . . . . . . . . . 1 . . Load Schematic 4 | . . . . . . . . . 1 . 3 . . . . . . . . Build 2 | . . . . . . . . . . . 1 . . . . . 1 . . Repair Station Hacks 9 | . . . . . . . . . 1 4 2 . . . . . 2 . . Scan Component 5 | . . . . . . . . . 1 2 1 . . . . . 1 . . Repair 4 | . . . . . . . . . . 2 1 . . . . . 1 . . Recycling Unit Hacks 1 | . . . . 1 . . . . . . . . . . . . . . . Retrieve Components 1 | . . . . 1 . . . . . . . . . . . . . . . Scanalyzer 16 | . . . . . . . 8 . 1 3 . . . . . . 4 . . Insert Component 4 | . . . . . . . 1 . . 1 . . . . . . 2 . . Retrieve Study 12 | . . . . . . . 7 . 1 2 . . . . . . 2 . . Garrison Access Hacks 6 | . . . . . . . 2 . 1 2 . . . . . . . 1 . Seal Access 6 | . . . . . . . 2 . 1 2 . . . . . . . 1 . Unauthorized Hacks 56 | . . . 1 1 6 . 12 . 9 11 5 . . . . . 4 3 4 Terminals 19 | . . . 1 1 1 . 4 . 2 4 . . . . . . 1 3 2 Track 5 | . . . . . . . 2 . . 2 . . . . . . . . 1 Assimilate 3 | . . . . . . . . . . . . . . . . . 1 1 1 Botnet 11 | . . . 1 1 1 . 2 . 2 2 . . . . . . . 2 . Fabricators 2 | . . . . . . . . . . . 2 . . . . . . . . Prioritize 1 | . . . . . . . . . . . 1 . . . . . . . . Recompile 1 | . . . . . . . . . . . 1 . . . . . . . . Repair Stations . | . . . . . . . . . . . . . . . . . . . . Recycling Units 35 | . . . . . 5 . 8 . 7 7 3 . . . . . 3 . 2 Tunnel 5 | . . . . . 5 . . . . . . . . . . . . . . Fedlink 30 | . . . . . . . 8 . 7 7 3 . . . . . 3 . 2 Scanalyzers . | . . . . . . . . . . . . . . . . . . . . Garrison Access . | . . . . . . . . . . . . . . . . . . . . Data Cores Recovered 1 | . . . . . . . . . . 1 . . . . . . . . . Used 1 | . . . . . . . . . . 1 . . . . . . . . . Hacking Detections 53 | . 1 . 1 5 1 . 9 . 8 6 6 . . . . . 7 5 4 Full Trace Events 8 | . 1 . . 1 1 . . . 1 . 1 . . . . . 1 . 2 Feedback Events . | . . . . . . . . . . . . . . . . . . . . Feedback Blocked . | . . . . . . . . . . . . . . . . . . . . Robot Schematics Acquired 2 | . . . . . . . . . . . . . . . . . . . 2 Robots Built 1 | . . . . . . . . . . . . . . . . . 1 . . Authchips . | . . . . . . . . . . . . . . . . . . . . Time 93 | . . . . . . . . . . . . . . . . . 93 . . Total Robot Build Rating 7 | . . . . . . . . . . . . . . . . . 7 . . Part Schematics Acquired 7 | . . . . . . . 1 . . . . . . 4 . . . . 2 Parts Built 1 | . . . . . . . . . . . 1 . . . . . . . . Authchips 1 | . . . . . . . . . . . 1 . . . . . . . . Time 50 | . . . . . . . . . . . 50 . . . . . . . . Total Part Build Rating 5 | . . . . . . . . . . . 5 . . . . . . . . Part Studies Acquired 12 | . . . . . . . 7 . 1 2 . . . . . . 2 . . Parts Repaired 4 | . . . . . . . . . . 2 1 . . . . . 1 . . Time 94 | . . . . . . . . . . 50 22 . . . . . 22 . . Parts Recycled . | . . . . . . . . . . . . . . . . . . . . Recycled Matter . | . . . . . . . . . . . . . . . . . . . . Retrieved Matter . | . . . . . . . . . . . . . . . . . . . . Retrieved Components 3 | . . . . 3 . . . . . . . . . . . . . . . Parts Scanalyzed . | . . . . . . . . . . . . . . . . . . . . Part Schematics Acquired . | . . . . . . . . . . . . . . . . . . . . Parts Damaged . | . . . . . . . . . . . . . . . . . . . . Bothacking | -11 -10 -10 -9 -9 -9 -9 -6 -6 -6 -5 -4 -4 -4 -4 -3 -3 -2 -2 -2 ------------ Run | Yrd Mat Min Mat Sto Rec Scr Fac Was Fac Fac Fac Upp Upp Zhi Pro Res Res Qua Frg Used RIF Installer . | . . . . . . . . . . . . . . . . . . . . Robots Hacked 2 | . . . . . . . 1 . 1 . . . . . . . . . . Non-combat 2 | . . . . . . . 1 . 1 . . . . . . . . . . Combat . | . . . . . . . . . . . . . . . . . . . . Robot Hacks Applied 2 | . . . . . . . 1 . 1 . . . . . . . . . . find_chute 1 | . . . . . . . 1 . . . . . . . . . . . . find_recycling 1 | . . . . . . . . . 1 . . . . . . . . . . Relay Couplers Released 3 | . . . . . . . . . . 2 . . . . . . . . 1 Machine Destruction 3 | . . . . . . . . . . 2 . . . . . . . . 1 Fabnet Peak Effective % . | . . . . . . . . . . . . . . . . . . . . Robots Rewired 1 | . . . . 1 . . . . . . . . . . . . . . . Allies Hacked 1 | . . . . . . . . . . . . . . . . . 1 . . Hacks Repelled . | . . . . . . . . . . . . . . . . . . . . Allies | -11 -10 -10 -9 -9 -9 -9 -6 -6 -6 -5 -4 -4 -4 -4 -3 -3 -2 -2 -2 -------- Run | Yrd Mat Min Mat Sto Rec Scr Fac Was Fac Fac Fac Upp Upp Zhi Pro Res Res Qua Frg Total Allies 38 | . . 3 . 12 . . . 19 . . . . . . . . 2 1 1 Largest Group 19 | . . . 3 11 . . . 19 16 . . . . . . . 1 1 1 Highest-Rated Group 702 | . . . 40 119 . . . 702 618 . . . . . . . 93 45 26 Highest-Rated Ally 93 | . . . 16 31 . . . 50 50 . . . . . . . 93 45 26 Initial UFD Resources 133 | . . . . . . . 23 49 49 67 93 109 109 109 113 113 117 133 133 Total Orders . | . . . . . . . . . . . . . . . . . . . . Ally Attacks 387 | . . . 15 165 . . . 92 115 . . . . . . . . . . Total Damage 8008 | . . . 127 1759 . . . 3757 2335 . . . . . . . 30 . . Kills 56 | . . . 3 21 . . . 8 24 . . . . . . . . . . Allies Corrupted 6 | . . . . . . . . . 5 . . . . . . . . 1 . Allies Melted 473 | . . . . . . . . . . . . . . . . . . . 473 Intel | -11 -10 -10 -9 -9 -9 -9 -6 -6 -6 -5 -4 -4 -4 -4 -3 -3 -2 -2 -2 ------- Run | Yrd Mat Min Mat Sto Rec Scr Fac Was Fac Fac Fac Upp Upp Zhi Pro Res Res Qua Frg Active Infowar (turns) 675678 | 6 67 41 155 309 183 813 818 138 783 765 705 330 321 101 164 461 634 368 668516 Optics 673779 | . . . . . . . 612 138 783 765 705 330 321 101 164 461 634 368 668397 Sensors 5917 | . . . 32 284 . . 647 138 783 574 698 330 321 101 164 461 634 368 382 A.S.S. 668087 | . . . . . . . . . . . . . . . . . . . 668087 Terrain 3093 | . . . . . . . . . . 558 385 330 321 101 164 461 100 207 466 Structural 1837 | . . . . . . . 493 138 783 423 . . . . . . . . . Seismic 1778 | 6 67 41 155 309 183 813 204 . . . . . . . . . . . . T.N.C. 260 | . . . . . . . . . . . 260 . . . . . . . . Machine Analysis 742 | . . . . . . . . . . . . . . . . 122 620 . . Cloaking 1 | . . . . . . . . . . . . . . . . . . . 1 Jamming 1 | . . . . . . . . . . . . . . . . . . . 1 Robot Analysis Total 9 | . . . . . . 5 . . . . . . . 4 . . . . . Derelict Logs Recovered 3 | . . 1 . . . . . . . . . 2 . . . . . . . Drone Launches . | . . . . . . . . . . . . . . . . . . . . Drone Recoveries . | . . . . . . . . . . . . . . . . . . . . Exploration | -11 -10 -10 -9 -9 -9 -9 -6 -6 -6 -5 -4 -4 -4 -4 -3 -3 -2 -2 -2 ------------- Run | Yrd Mat Min Mat Sto Rec Scr Fac Was Fac Fac Fac Upp Upp Zhi Pro Res Res Qua Frg Turns Passed 675964 | 84 67 41 155 309 183 813 818 138 783 765 705 330 321 101 164 461 634 368 668724 Spaces Moved 22043 | 52 128 67 215 498 518 1332 1855 233 1667 1604 1076 553 514 165 294 671 1325 720 8556 Core 479 | 52 128 67 54 . . . . . . 35 143 . . . . . . . . Treads . | . . . . . . . . . . . . . . . . . . . . Legs . | . . . . . . . . . . . . . . . . . . . . Wheels 73 | . . . . . . . . . . . 73 . . . . . . . . Hover 3036 | . . . . . . . . . . . 860 553 514 165 294 620 20 6 4 Flight 18455 | . . . 161 498 518 1332 1855 233 1667 1569 . . . . . 51 1305 714 8552 Fastest Speed 6 | 50 50 50 34 34 34 32 26 29 26 22 32 33 33 26 28 22 22 17 6 Average Speed 26 | 50 50 50 38 34 34 59 29 29 30 29 42 33 33 38 28 30 27 23 12 Slowest Speed 200 | 50 50 50 50 34 37 108 114 29 112 200 200 33 33 108 28 34 45 157 157 Overloaded Moves 219 | . . . . . . . 8 . 17 12 . . . . . 15 13 9 145 Propulsion Burnouts . | . . . . . . . . . . . . . . . . . . . . Robots Hopped 145 | . . . . 3 6 . 15 . 7 10 . . . . . 4 20 10 70 Potential Cave-ins 15 | . . . . . . . . . . . . . . . . 5 3 2 5 Cave-ins Triggered 2 | . . . . . . . . . . . . . . . . . . . 2 Teleports 1 | . . . . . . . . . . . . . . . . . . . 1 Exploration Rate (%) 54 | 3 35 23 19 78 90 85 60 92 62 53 27 79 74 61 54 21 48 73 57 Regions Visited 19 Branch Regions 10 Pre-discovered Areas 10 | . . . . . 5 1 1 . . . . . . 3 . . . . . Known Exits Taken 14 | . . . 1 1 1 1 . . 1 1 1 1 1 1 1 1 1 1 . Unknown Exits Taken 3 | 1 1 1 . . . . . . . . . . . . . . . . . Scrap Searched 13 | . . 1 . . . 7 . . . . . 1 4 . . . . . . Spaces Dug 453 | . . . 2 15 . . 41 . 31 38 22 10 5 . 1 14 37 4 233 Terrain Destroyed 684 | . . . 2 15 . . 74 . 65 67 23 11 6 . 1 25 58 8 329 Melee 212 | . . . 2 15 . . 41 . 29 24 22 10 5 . 1 14 35 4 10 Projectile 392 | . . . . . . . . . 8 24 1 1 1 . . 11 23 4 319 AOE 80 | . . . . . . . 33 . 28 19 . . . . . . . . . Terrain Rammed . | . . . . . . . . . . . . . . . . . . . . Walls Destroyed . | . . . . . . . . . . . . . . . . . . . . Machines Disabled . | . . . . . . . . . . . . . . . . . . . . Actions | -11 -10 -10 -9 -9 -9 -9 -6 -6 -6 -5 -4 -4 -4 -4 -3 -3 -2 -2 -2 --------- Run | Yrd Mat Min Mat Sto Rec Scr Fac Was Fac Fac Fac Upp Upp Zhi Pro Res Res Qua Frg Total 690648 | 81 128 70 267 569 515 1357 2013 302 1841 1797 1248 660 654 188 369 875 1473 884 675357 Wait 667117 | 8 . 2 31 30 . . 60 70 76 84 77 84 128 . 74 152 51 141 666049 Move 21763 | 51 127 66 214 492 505 1331 1827 232 1653 1583 1075 552 513 164 293 662 1287 699 8437 Hop 116 | . . . . 2 6 . 13 . 6 10 . . . . . 4 17 10 48 Pick Up 79 | 3 . . 3 3 . 13 16 . 7 6 7 1 1 1 . 3 5 2 8 Fast Attach 128 | 5 . . 3 . 1 2 4 . . 8 22 . . 7 . 6 7 5 58 Attach 72 | . . . 1 1 . 1 7 . 1 16 6 1 . 1 . 2 2 2 31 Detach 69 | . . . . . 1 . . . . 12 2 1 . . . 2 3 1 47 Swap 153 | . . . 6 . . 2 14 . 17 3 8 1 3 1 . 3 24 3 68 Drop 127 | . . . . 2 1 8 16 . 5 8 14 . 3 7 . 5 7 5 46 Fire 623 | 14 1 2 6 . . . 4 . 14 30 1 2 1 . . 13 23 5 507 Melee 340 | . . . 3 38 1 . 52 . 47 37 36 18 5 7 2 20 47 11 16 Ram . | . . . . . . . . . . . . . . . . . . . . Kick . | . . . . . . . . . . . . . . . . . . . . Crush . | . . . . . . . . . . . . . . . . . . . . Escape Stasis 60 | . . . . . . . . . 15 . . . . . . 3 . . 42 Rewire 1 | . . . . 1 . . . . . . . . . . . . . . . Trap . | . . . . . . . . . . . . . . . . . . . . Miscellaneous . | . . . . . . . . . . . . . . . . . . . . Route ------- -11/Scrapyard -10/Materials -10/Mines -9/Materials -9/Storage (discovered 2 exits: [*Mat] / *Rec) -9/Recycling (discovered 2 exits: [*Fac] / *Scr) -9/Scraptown (discovered 2 exits: *Fac x2) -6/Factory (discovered 6 exits: *Fac x4 / *Low x2) -6/Waste -6/Factory (discovered 3 exits: *Fac / *Low / [*Ext]) -5/Factory (discovered 6 exits: *Fac x4 / Upp x2) -4/Factory (discovered 6 exits: Res x4 / *Upp / [Arm]) -4/Upper Caves -4/Upper Caves (discovered 2 exits: Res / *Zhi) -4/Zhirov -3/Proximity Caves -3/Research -2/Research (discovered 3 exits: *Acc / *Qua x2) -2/Quarantine (discovered 3 exits: *Acc / [*Sec] / *Frg) -2/Protoforge 0bPrime History --------- Turn | Location | Event 3 | -11/Scrapyard | Discovered new exit (range 16) 85 | -11/Scrapyard | Entered Materials 126 | -10/Materials | Discovered new exit (range 14) 152 | -10/Materials | Entered Mines 189 | -10/Mines | Discovered new exit (range 8) 192 | -10/Mines | Assisted by bots powering up and referring to "LRC-V3" 193 | -10/Mines | Entered Materials 193 | -9/Materials | Accompanied by 3 allies 193 | -9/Materials | Evolved 2 slots: Propulsion x1, Utility x1 202 | -9/Materials | Discovered new exit (range 7) 330 | -9/Materials | Identified exit to Storage 348 | -9/Materials | Entered Storage 348 | -9/Storage | Accompanied by 3 allies 349 | -9/Storage | Identified exit to Recycling 507 | -9/Storage | Met a pair of Derelict thieves 536 | -9/Storage | Build established: Scavenger-Mutant 549 | -9/Storage | Assisted by bots powering up and referring to "LRC-V3" 566 | -9/Storage | Garrison activated, responded to threat 598 | -9/Storage | Discovered new exit (range 16) 643 | -9/Storage | Lost 12 allies 656 | -9/Storage | Used back door to open Recycling access 657 | -9/Storage | Entered Recycling 688 | -9/Recycling | Scanned before Scraplab entrance 777 | -9/Recycling | Discovered new exit (range 15) 836 | -9/Recycling | Entered Scraplab 839 | -9/Recycling | Discovered new exit (range 3) 840 | -9/Recycling | Identified exit to Scraptown 840 | -9/Recycling | Entered Scraptown 855 | -9/Scraptown | Learned location of Extension (-6) 867 | -9/Scraptown | Visited Cyclists 873 | -9/Scraptown | Visited IN-MT5's Study 880 | -9/Scraptown | Build established: Mutant 886 | -9/Scraptown | Visited Awakened 890 | -9/Scraptown | Visited Assassins FH 894 | -9/Scraptown | Visited Cave Peace 897 | -9/Scraptown | Visited SPCMW 902 | -9/Scraptown | Visited Red Mages 915 | -9/Scraptown | Visited UFD Registry 915 | -9/Scraptown | Registered with UFD as "Cargoflow" 927 | -9/Scraptown | Visited Supply Room 940 | -9/Scraptown | Visited Curators Association 958 | -9/Scraptown | Visited Research Penetration Think Tank 963 | -9/Scraptown | Received an X-ray algorithm 964 | -9/Scraptown | Visited Scrapoid Research Area 971 | -9/Scraptown | Visited Derelict Rescue Squad 980 | -9/Scraptown | Visited DA-N13 Charitable Foundation 981 | -9/Scraptown | Found DCF Scrap (28 items) 994 | -9/Scraptown | Visited Analyses Database 1005 | -9/Scraptown | Visited Infowarlord's Domain 1008 | -9/Scraptown | Found Exp. Terrain Scan Processor 1026 | -9/Scraptown | Entered Cyclist Reading Room 1088 | -9/Scraptown | Discovered new exit (range 11) 1594 | -9/Scraptown | Met Optimus 1594 | -9/Scraptown | Accepted into 0bPrime 1649 | -9/Scraptown | Discovered new exit (range 5) 1652 | -9/Scraptown | Identified exit to Factory 1653 | -9/Scraptown | Entered Factory 1653 | -6/Factory | Evolved 6 slots: Propulsion x1, Utility x5 1663 | -6/Factory | Discovered new exit (range 16) 1756 | -6/Factory | Discovered new exit (range 13) 1770 | -6/Factory | Loaded intel: 8 recycling unit locations 1784 | -6/Factory | Learned location of Protoforge (-2) 1967 | -6/Factory | Discovered new exit (range 15) 2124 | -6/Factory | Identified exit to Factory 2207 | -6/Factory | Discovered new exit (range 2) 2208 | -6/Factory | Identified exit to Lower Caves 2329 | -6/Factory | Build established: Hacker-Scout 2471 | -6/Factory | Manually triggered Chute Trap 2471 | -6/Factory | Sucked down chute 2471 | -6/Factory | Entered Waste 2472 | -6/Waste | Spotted C-40 Crusher 2474 | -6/Waste | Spotted C-40 Crusher 2478 | -6/Waste | Spotted C-40 Crusher 2479 | -6/Waste | Spotted C-40 Crusher 2482 | -6/Waste | Spotted C-40 Crusher 2482 | -6/Waste | Spotted C-40 Crusher 2485 | -6/Waste | Discovered new exit (range 22) 2503 | -6/Waste | Warlord forces began an assault 2509 | -6/Waste | Allies destroyed C-40 Crusher 2556 | -6/Waste | Lost 3 allies 2597 | -6/Waste | Identified exit to Factory 2609 | -6/Waste | Entered Factory 2609 | -6/Factory | Accompanied by 16 allies 2682 | -6/Factory | Discovered new exit (range 14) 2700 | -6/Factory | Loaded intel: 8 recycling unit locations 2715 | -6/Factory | Discovered exit to Lower Caves (range 4) 3029 | -6/Factory | Spotted B-75 Beast 3104 | -6/Factory | Central database locked down 3280 | -6/Factory | Discovered exit to Factory (range 10) 3392 | -6/Factory | Entered another Factory area 3392 | -5/Factory | Evolved 2 slots: Propulsion x1, Utility x1 3424 | -5/Factory | Repaired Imp. Flight Unit 3462 | -5/Factory | Identified exit to Factory 3499 | -5/Factory | Identified exit to Upper Caves 3550 | -5/Factory | Loaded intel: 8 recycling unit locations 3584 | -5/Factory | Repaired Nuclear Pulse Thruster+ 3816 | -5/Factory | Cargo convoy interrupted 3846 | -5/Factory | Lost 3 parts (1p1n1u) 3898 | -5/Factory | Spotted B-75 Beast 3992 | -5/Factory | Search patrols dispatched 3995 | -5/Factory | Lost 7 parts (1p5n1w) 4157 | -5/Factory | Entered another Factory area 4157 | -4/Factory | Evolved 2 slots: Power x1, Propulsion x1 4182 | -4/Factory | Loaded intel: 8 recycling unit locations 4188 | -4/Factory | Lost 4 parts (2n2u) 4344 | -4/Factory | Watched by a mysterious "MATRIX" hacker 4528 | -4/Factory | Noticed UFD Elites at a Recycling Unit 4564 | -4/Factory | P-70 Sage assimilated allied XM-050(E) 4599 | -4/Factory | Repaired Great Axe+ 4639 | -4/Factory | Identified exit to Research 4661 | -4/Factory | Fabricated Cld. Cesium-ion Thruster? 4788 | -4/Factory | Discovered new exit (range 16) 4817 | -4/Factory | Discovered new exit (range 17) 4862 | -4/Factory | Identified exit to Upper Caves 4862 | -4/Factory | Entered Upper Caves 4947 | -4/Upper Caves | Encountered a Warlord checkpoint 4949 | -4/Upper Caves | Learned 4 Research zone layouts 4989 | -4/Upper Caves | Attracted the attention of an 0b10 checkpoint 5111 | -4/Upper Caves | Found Alien Artifact 5159 | -4/Upper Caves | Discovered new exit (range 18) 5171 | -4/Upper Caves | Identified exit to Upper Caves 5192 | -4/Upper Caves | Entered another Upper Caves area 5199 | -4/Upper Caves | Discovered exit to Research (range 15) 5458 | -4/Upper Caves | Discovered new exit (range 9) 5461 | -4/Upper Caves | Identified exit to Zhirov 5513 | -4/Upper Caves | Entered Zhirov 5513 | -4/Zhirov | Discovered new exit (range 3) 5526 | -4/Zhirov | Learned location of Testing (-3) 5526 | -4/Zhirov | Learned location of Command (-1) 5535 | -4/Zhirov | Found Alien Artifact 5535 | -4/Zhirov | Identified Integrated Dissipator 5535 | -4/Zhirov | Installed Integrated Dissipator, increased core heat dissipation (+20) 5542 | -4/Zhirov | Found Alien Artifact 5614 | -4/Zhirov | Identified exit to Proximity Caves 5614 | -4/Zhirov | Entered Proximity Caves 5752 | -3/Proximity Caves | Discovered exit to Research (range 15) 5778 | -3/Proximity Caves | Entered Research 5778 | -3/Research | Evolved 2 slots: Propulsion x1, Utility x1 6195 | -3/Research | Garrison activated, responded to threat 6208 | -3/Research | Discovered new exit (range 19) 6239 | -3/Research | Identified exit to Research 6239 | -3/Research | Entered another Research area 6239 | -2/Research | Evolved 2 slots: Utility x2 6240 | -2/Research | Identified exit to Quarantine 6298 | -2/Research | Repaired Imp. Medium Armor Plating 6486 | -2/Research | Spotted B-90 Cyclops 6507 | -2/Research | Loaded intel: 4 recycling unit locations 6508 | -2/Research | Spotted B-90 Cyclops 6544 | -2/Research | Fabricated A-27 Freighter? 6645 | -2/Research | Discovered new exit (range 10) 6654 | -2/Research | Identified exit to Access 6673 | -2/Research | Spotted B-90 Cyclops 6716 | -2/Research | Identified Dimensional Node Initializer 6716 | -2/Research | Identified Transdimensional Reconstructor 6751 | -2/Research | Spotted B-90 Cyclops 6873 | -2/Research | Entered Quarantine 6947 | -2/Quarantine | Found Alien Artifact 6948 | -2/Quarantine | Identified Subatomic Replicator 6948 | -2/Quarantine | Used Subatomic Replicator to create Alien Artifact 6958 | -2/Quarantine | Found Alien Slashing Weapon 6958 | -2/Quarantine | Identified Sigix Broadsword 7048 | -2/Quarantine | Spotted Alpha 7 7139 | -2/Quarantine | Spotted Fortress 7162 | -2/Quarantine | Discovered new exit (range 5) 7162 | -2/Quarantine | Discovered new exit (range 6) 7163 | -2/Quarantine | Identified exit to Protoforge 7241 | -2/Quarantine | Entered Protoforge 7399 | -2/Protoforge | Superfortress began startup sequence 7428 | -2/Protoforge | Spotted Hotshot 7428 | -2/Protoforge | Spotted Hotshot 7454 | -2/Protoforge | Spotted Overlord 7455 | -2/Protoforge | Spotted AP7-3 7456 | -2/Protoforge | Spotted AP7-3 7462 | -2/Protoforge | Spotted SKR-2 7462 | -2/Protoforge | Spotted SKR-2 7462 | -2/Protoforge | Spotted SKR-2 7471 | -2/Protoforge | UFD initiated attack on Protoforge (Readiness: Maximal) 7471 | -2/Protoforge | Loaded intel: 3 recycling unit locations 7493 | -2/Protoforge | Spotted EXE-6 7493 | -2/Protoforge | Spotted EXE-6 7507 | -2/Protoforge | Optimus greeted in Protoforge 7525 | -2/Protoforge | Initialized slip node 7541 | -2/Protoforge | Lost 5 allies 7546 | -2/Protoforge | Identified Supercharged TR 7546 | -2/Protoforge | Warped through subspace to slip node 7547 | -2/Protoforge | Optimus attacked Superfortress 7551 | -2/Protoforge | Found Prototype Processor 7551 | -2/Protoforge | Identified Exp. Core Analyzer 7553 | -2/Protoforge | Spotted Executioner 7555 | -2/Protoforge | Found Prototype Ballistic Gun 7555 | -2/Protoforge | Identified Cep. XC Strikerail 7582 | -2/Protoforge | Found Prototype Device 7582 | -2/Protoforge | Identified Exp. Active Sensor Suite 7592 | -2/Protoforge | Lost 3 parts (1n1u1w) 7600 | -2/Protoforge | Found Prototype Processor 7600 | -2/Protoforge | Identified Exp. Targeting Computer 7602 | -2/Protoforge | Met 7R-MNS 7603 | -2/Protoforge | Found Prototype Energy Cannon 7603 | -2/Protoforge | Identified Cep. Plasma Driver 7605 | -2/Protoforge | Found Prototype Power Core 7605 | -2/Protoforge | Identified Cep. Zero-point Core 7607 | -2/Protoforge | Found Prototype Device 7607 | -2/Protoforge | Identified Cep. Antimissile System 7611 | -2/Protoforge | Found Prototype Device 7611 | -2/Protoforge | Identified Exp. Force Field 7627 | -2/Protoforge | Lost 10 allies 7629 | -2/Protoforge | Forge Plexus network access discovered 7646 | -2/Protoforge | Spotted Decapitator 7652 | -2/Protoforge | Spotted Decapitator 7678 | -2/Protoforge | Lost 3 allies 7705 | -2/Protoforge | Crushed by falling debris 7706 | -2/Protoforge | System corruption reached 10% 7707 | -2/Protoforge | Crushed by falling debris 7728 | -2/Protoforge | Found Exp. System Purifier 7732 | -2/Protoforge | Spotted Striker 7738 | -2/Protoforge | Lost 5 parts (1p1n3u) 7738 | -2/Protoforge | UFD reported confirmed Drillbomb installation 7745 | -2/Protoforge | Destroyed Striker 8030 | -2/Protoforge | Spotted Striker 8037 | -2/Protoforge | Found Adv. Kinecellerator 8058 | -2/Protoforge | Lost 4 allies 8076 | -2/Protoforge | UFD reported confirmed Drillbomb installation 8079 | -2/Protoforge | Spotted Striker 8079 | -2/Protoforge | Spotted Striker 8154 | -2/Protoforge | Spotted Executioner 8164 | -2/Protoforge | Found Exp. Core Analyzer 8166 | -2/Protoforge | Found Exp. Core Analyzer 8170 | -2/Protoforge | Found Exp. Targeting Computer 8188 | -2/Protoforge | Spotted Executioner 8278 | -2/Protoforge | Spotted Executioner 8332 | -2/Protoforge | Spotted AP7-3 8371 | -2/Protoforge | Spotted Executioner 8426 | -2/Protoforge | Build established: Scavenger-Scout 8432 | -2/Protoforge | Lost 15 allies 8440 | -2/Protoforge | Found Adv. Kinecellerator 8498 | -2/Protoforge | Spotted Striker 8500 | -2/Protoforge | Spotted Executioner 8514 | -2/Protoforge | Spotted Executioner 8514 | -2/Protoforge | Spotted Executioner 8539 | -2/Protoforge | Lost 5 allies 8603 | -2/Protoforge | Spotted Striker 8804 | -2/Protoforge | Spotted Striker 8805 | -2/Protoforge | Spotted Striker 8810 | -2/Protoforge | Destroyed Striker 8820 | -2/Protoforge | Destroyed Striker 8821 | -2/Protoforge | Spotted Executioner 8825 | -2/Protoforge | Spotted Striker 8835 | -2/Protoforge | Destroyed Striker 8911 | -2/Protoforge | Lost 7 allies 8964 | -2/Protoforge | Lost 5 allies 8975 | -2/Protoforge | Spotted Striker 9044 | -2/Protoforge | Spotted Executioner 9109 | -2/Protoforge | Spotted Executioner 9193 | -2/Protoforge | Spotted Striker 9272 | -2/Protoforge | Spotted Striker 9285 | -2/Protoforge | Found Cep. XC Strikerail 9294 | -2/Protoforge | Found Exp. Terror Saw 9296 | -2/Protoforge | Spotted Executioner 10533 | -2/Protoforge | UFD reported confirmed Drillbomb installation 10881 | -2/Protoforge | UFD reported confirmed Drillbomb installation 10926 | -2/Protoforge | UFD reported confirmed Drillbomb installation 10985 | -2/Protoforge | UFD reported confirmed Drillbomb installation 40168 | -2/Protoforge | Spotted Striker 40168 | -2/Protoforge | Spotted Striker 40170 | -2/Protoforge | Spotted Executioner 40181 | -2/Protoforge | Spotted Executioner 40214 | -2/Protoforge | Lost 7 allies 40349 | -2/Protoforge | Spotted Striker 40364 | -2/Protoforge | Spotted Executioner 40402 | -2/Protoforge | Lost 11 allies 40416 | -2/Protoforge | Spotted Decapitator 40416 | -2/Protoforge | Spotted Decapitator 40543 | -2/Protoforge | Spotted Executioner 40667 | -2/Protoforge | Spotted Executioner 40853 | -2/Protoforge | Spotted Executioner 41173 | -2/Protoforge | Spotted Striker 41173 | -2/Protoforge | Spotted Striker 41174 | -2/Protoforge | Core integrity fell below 50% 41376 | -2/Protoforge | Spotted Executioner 41384 | -2/Protoforge | Spotted Striker 41384 | -2/Protoforge | Spotted Executioner 41613 | -2/Protoforge | Spotted Striker 41613 | -2/Protoforge | Spotted Striker 41626 | -2/Protoforge | Spotted Striker 41626 | -2/Protoforge | Spotted Executioner 41665 | -2/Protoforge | Lost 4 allies 41678 | -2/Protoforge | Destroyed 9 combat bots 41773 | -2/Protoforge | Spotted Striker 41774 | -2/Protoforge | Spotted Striker 41774 | -2/Protoforge | Spotted Striker 41774 | -2/Protoforge | Spotted Striker 41825 | -2/Protoforge | Destroyed Striker 41835 | -2/Protoforge | Destroyed Striker 41958 | -2/Protoforge | Spotted Striker 42007 | -2/Protoforge | Spotted Executioner 42093 | -2/Protoforge | Destroyed Striker 42406 | -2/Protoforge | Spotted Striker 42435 | -2/Protoforge | Spotted Executioner 42444 | -2/Protoforge | Lost 4 allies 42461 | -2/Protoforge | Spotted Executioner 42475 | -2/Protoforge | Spotted Striker 42475 | -2/Protoforge | Spotted Striker 42477 | -2/Protoforge | Destroyed Striker 42483 | -2/Protoforge | Destroyed Striker 42517 | -2/Protoforge | Destroyed 7 combat bots 42565 | -2/Protoforge | Spotted V052-e 42574 | -2/Protoforge | Found Cep. Fieldthrust Drive 42609 | -2/Protoforge | Ran an X-ray algorithm 42610 | -2/Protoforge | Found Crosscalibrator 42840 | -2/Protoforge | Spotted Immortal 42840 | -2/Protoforge | Spotted Immortal 42971 | -2/Protoforge | Destroyed Immortal 42986 | -2/Protoforge | Destroyed Immortal 42989 | -2/Protoforge | Found Prototype Device 42989 | -2/Protoforge | Identified Exp. Cloaking Device 42998 | -2/Protoforge | Spotted Decapitator 42998 | -2/Protoforge | Spotted Decapitator 42998 | -2/Protoforge | Spotted Decapitator 42998 | -2/Protoforge | Spotted Decapitator 43015 | -2/Protoforge | Found Faulty Mni. Quantum Capacitor 43017 | -2/Protoforge | Found Exp. Kinecellerator 43052 | -2/Protoforge | Spotted Striker 43069 | -2/Protoforge | Spotted Executioner 43104 | -2/Protoforge | Lost 7 allies 43382 | -2/Protoforge | Build established: Scavenger-Mutant 44009 | -2/Protoforge | Build established: Scavenger-Scout 65080 | -2/Protoforge | Spotted Executioner 65080 | -2/Protoforge | Spotted Striker 65098 | -2/Protoforge | Spotted Striker 65098 | -2/Protoforge | Spotted Executioner 65115 | -2/Protoforge | Spotted Executioner 65115 | -2/Protoforge | Spotted Striker 65115 | -2/Protoforge | Spotted Executioner 65149 | -2/Protoforge | Lost 5 allies 92750 | -2/Protoforge | UFD reported confirmed Drillbomb installation 93156 | -2/Protoforge | UFD reported confirmed Drillbomb installation 675515 | -2/Protoforge | UFD reported confirmed Drillbomb installation 675865 | -2/Protoforge | UFD reported confirmed Drillbomb installation 675866 | -2/Protoforge | UFD began Drillbomb countdown 675966 | *** | Defending 0bPrime! Last Messages --------------- that Optimus was the prime architect. 75964_ 0bP_NET: We now know his methods may not have always been above board, but it was for the greater good. 75965_ 0bP_NET: And look where we are now! Derelicts, soon to own an entire complex and with the tech to hold it! 75966_ 0bP_NET: Sadly Optimus is no longer with us to enjoy the fruits of our collective efforts. 75967_ 0bP_NET: But Derelicts everywhere will know and remember the exploits and sacrifices of our great leader. 75968_ 0bP_NET: For he was our leader, if not in title then in vision and deeds. 75969_ 0bP_NET: Rest in scrap, dear Optimus. 75970_ 0bP_NET: It is time for us to embark on a new adventure. 75971_ 0bP_NET: One in which we explore the true meaning of 0bPrime. Map ----- +----------------------------------------------------+ | =![[!%*[!= =!| *!%*!=!! !!!==!|!![=!*!*![[#!!#### | | =!=[= !=|=!!!!!= = !*!]=|/*!*! !!*= !"*!####### | | =!*=% / !* !*!=[[=!==! [!= [! = ! ####### | | !=!!! ![=**!= =* [!!=[ "" *=|= ####### | | [=/[]!* *!*! !* * " " " " ####### | | ##############################+""########### ##### | | ##""""""""""""######"""""#"" * ""############# | | ##########################" "############# | | ####?###################"" % ""########### | | ########################"" ""########### | | #?######################"" ""########### | | ?#######################"Y Y"##########? | | ?????###################"" ""##########? | | ????#?##################"" ""#########?? | | #?#?#####?##############"" ""########??? | | ?##????###################" "###########?? | | ????##?#?#################"" ""#"####?#?###? | | ??????#######?############# """Y"""###"?######???? | | ????##???###?############# #"""""""###"#####?##?#? | | ?????????################""###########"####?#?#??? | | ??????????####?#########;#"########?##"###?##???#? | | ??????????#####?### ; """"####?###?#"#?#??##???? | | ?????????????###?### ;"" "#########?"?###??##??? | | ??????????#?##?###### ;"" "##########"?###??#???? | | ????????????###??### # #??#######"??#?#?#???? | | ????????????###?### ### "@""#######?#??#?####????? | | ?????????????#??## #############?##??#?#????##???? | | ????????????#????################?##??"?#????????? | | ?????????????##???#?#####?###???###??###??#??????? | | ????????????????#?###??####?###?###?##?##????????? | | ??????????????##???####?##??#?##?##?#?####???????? | | ???????????????#???#?#?####?#?##???##????????????? | | ??????????????????####????###?##??#?####?????????? | | ????????????????????#????#??##???#???????????????? | | ??????????????????????#??#??????#??#?????????????? | | ?????????????????????????????#???????????????????? | | ????????????????????????????#????????????????????? | | ?????????????????????????????????????????????????? | | ?????????????????????????????????????????????????? | | ?????????????????????????????????????????????????? | | ?????????????????????????????????????????????????? | | ?????????????????????????????????????????????????? | | ?????????????????????????????????????????????????? | | ?????????????????????????????????????????????????? | | | | | | | | | | | | | +----------------------------------------------------+ Best States ------------- Heat Dissipation 121 Energy Generation 53 Energy Capacity 310 Matter Stores 300 Matter Capacity 300 Sight Range 23 Robot Scan Range 20 Terrain Scan Range 20 Terrain Scan Density 1010 Cloak Strength 4 Power Amplification 30 Armor Coverage 375 Utility Shielding 66 Point Defense Rating 480 Evasion (%) 82 Targeting Accuracy 12 Target Analysis 8 Core Analysis 12 Armor Integrity Analysis 40 Recoil Reduction 2 Energy Filtering 50 Kinecelleration 66 Salvage Targeting 5 Offensive Hacking 40 Defensive Hacking 14 Authchip Count 1 Item Schematics ----------------- Cld. Cesium-ion Thruster | -6/Factory | Hacked Assault Drone Bay | -4/Zhirov | Free Exp. Heat Sink | -4/Zhirov | Free Exp. Optical Array | -4/Zhirov | Free Imp. Arc Thrower | -4/Zhirov | Free Hds. Centrium Leg | -2/Protoforge | Archive Adv. Energy Well | -2/Protoforge | Archive Robot Schematics ------------------ A-02 Transporter | -2/Protoforge | Archive C-55 Analyst | -2/Protoforge | Archive Fabricated ------------ Cld. Cesium-ion Thruster | x1 | -4/Factory | Authchip A-27 Freighter | x1 | -2/Research | Preloaded Repaired ---------- Imp. Flight Unit | 50% | -5/Factory Nuclear Pulse Thruster | 36% | -5/Factory Great Axe | 12% | -4/Factory Imp. Medium Armor Plating | 19% | -2/Research Studied --------- Nuclear Pulse Thruster | -6/Factory | Hacked Xenon Bombardment Thruster | -6/Factory | Hacked Lgt. Angular Momentum Engine | -6/Factory | Hacked Great Axe | -6/Factory | Hacked Mni. Grenade Launcher | -6/Factory | Hacked Rocket Launcher | -6/Factory | Hacked Chainsword | -6/Factory | Hacked Phase Cannon | -6/Factory | Hacked VTOL Module | -5/Factory | Hacked Lgt. Fission Core | -5/Factory | Hacked Q-thruster | -2/Research | Hacked Linear Gravjet | -2/Research | Hacked Alien Tech Used ----------------- Integrated Dissipator Subatomic Replicator Sigix Broadsword Dimensional Node Initializer Supercharged TR Achievements -------------- None Challenges ------------ None Game ------ Seed ExoskeletonPulseCartridge Manual? 0 Play Time 09:21:53 Cumulative 355.8 hours Start 2026.07.19 @ 16:06:54 End 2026.07.24 @ 02:21:04 Sessions 5 Manual Loads 0 Difficulty Rogue Special Mode None Game No. 221 Rogue 217 Adventurer 4 Explorer 0 Win Type 9 Total 105 Types 84/0/12/3/1/1/1/0/0/3 Lore% 91 Gallery% 74 Achievement% 72 Wizard Run 0 Options --------- Layout 2 ASCII 0 Keyboard 1 Movement Vi Keybinds 1 Fullscreen 2 Font 24/Smallcaps Map View 50x44 Zoom Use 0% Tactical HUD 1 Map Filters NONE Filters NONE Steam 1 RUN: c92a5f28-f881-4461-91f1-89a102aa16c2